[Event "2026 Biel Blitz Open"]
[Site "Biel, CH"]
[Date "2026.07.19"]
[Round "6"]
[White "Alexakis, Dimitrios"]
[Black "Aryan Mehta"]
[Result "1-0"]
[Board "29"]
[TimeControl "180+2"]
[WhiteFideId "4200527"]
[BlackFideId "33329664"]
[WhiteElo "1895"]
[BlackElo "2061"]
[WhiteClock "0:00:24"]
[BlackClock "0:00:09"]
[Variant "Standard"]
[EndDate "2026.07.19"]
[EndTime "13:35:50"]

1. e4 {[%clk 0:03:01]}  e5 {[%clk 0:03:03]} 2. Nf3 {[%clk 0:03:02]}  Nc6 {[%clk 0:03:04]} 3. d4 {[%clk 0:03:03]}  exd4 {[%clk 0:03:04]}
4. Nxd4 {[%clk 0:03:04]}  Qf6 {[%clk 0:03:05]} 5. Be3 {[%clk 0:03:03]}  Bc5 {[%clk 0:03:05]} 6. c3 {[%clk 0:03:04]}  Nge7 {[%clk 0:03:05]}
7. Bc4 {[%clk 0:03:05]}  Ne5 {[%clk 0:03:05]} 8. Be2 {[%clk 0:03:06]}  d6 {[%clk 0:03:03]} 9. O-O {[%clk 0:03:05]}  Qg6 {[%clk 0:03:02]}
10. f4 {[%clk 0:02:52]}  Qxe4 {[%clk 0:02:48]} 11. Qd2 {[%clk 0:02:41]}  Ng4 {[%clk 0:02:47]} 12. Bxg4 {[%clk 0:02:35]}  Bxg4 {[%clk 0:02:47]}
13. Na3 {[%clk 0:02:30]}  O-O {[%clk 0:02:40]} 14. Rae1 {[%clk 0:02:31]}  Qg6 {[%clk 0:02:18]} 15. b4 {[%clk 0:02:23]}  Bxd4 {[%clk 0:02:05]}
16. Bxd4 {[%clk 0:02:19]}  Nf5 {[%clk 0:01:53]} 17. c4 {[%clk 0:02:09]}  h5 {[%clk 0:01:41]} 18. Nc2 {[%clk 0:02:08]}  Nh4 {[%clk 0:01:27]}
19. Kh1 {[%clk 0:01:57]}  Bf5 {[%clk 0:01:17]} 20. Ne3 {[%clk 0:01:33]}  Be4 {[%clk 0:01:18]} 21. f5 {[%clk 0:01:34]}  Qg5 {[%clk 0:01:12]}
22. Qf2 {[%clk 0:01:28]}  Bd3 {[%clk 0:00:52]} 23. Qg3 {[%clk 0:01:15]}  Qxg3 {[%clk 0:00:29]} 24. hxg3 {[%clk 0:01:15]}  Bxf1 {[%clk 0:00:29]}
25. Rxf1 {[%clk 0:01:16]}  Nxg2 {[%clk 0:00:23]} 26. Kxg2 {[%clk 0:01:16]}  g6 {[%clk 0:00:19]} 27. g4 {[%clk 0:01:13]}  h4 {[%clk 0:00:14]}
28. Bf6 {[%clk 0:01:10]}  Rfe8 {[%clk 0:00:07]} 29. Rh1 {[%clk 0:01:10]}  g5 {[%clk 0:00:06]} 30. Bxg5 {[%clk 0:01:10]}  Kg7 {[%clk 0:00:06]}
31. Rxh4 {[%clk 0:01:07]}  f6 {[%clk 0:00:04]} 32. Bf4 {[%clk 0:01:05]}  Rh8 {[%clk 0:00:04]} 33. Rxh8 {[%clk 0:01:02]}  Rxh8 {[%clk 0:00:05]}
34. Nd5 {[%clk 0:01:03]}  Rc8 {[%clk 0:00:04]} 35. g5 {[%clk 0:00:58]}  fxg5 {[%clk 0:00:05]} 36. Bxg5 {[%clk 0:00:58]}  c6 {[%clk 0:00:06]}
37. Ne7 {[%clk 0:00:55]}  Re8 {[%clk 0:00:07]} 38. f6+ {[%clk 0:00:55]}  Kf7 {[%clk 0:00:08]} 39. Kf3 {[%clk 0:00:54]}  Rh8 {[%clk 0:00:08]}
40. Kg4 {[%clk 0:00:41]}  Rh2 {[%clk 0:00:06]} 41. a3 {[%clk 0:00:40]}  Rg2+ {[%clk 0:00:04]} 42. Kf4 {[%clk 0:00:40]}  Rf2+ {[%clk 0:00:06]}
43. Kg4 {[%clk 0:00:41]}  Rg2+ {[%clk 0:00:07]} 44. Kf4 {[%clk 0:00:41]}  Rf2+ {[%clk 0:00:08]} 45. Kg3 {[%clk 0:00:42]}  Ra2 {[%clk 0:00:07]}
46. Nc8 {[%clk 0:00:35]}  Rxa3+ {[%clk 0:00:07]} 47. Kf4 {[%clk 0:00:36]}  Ke6 {[%clk 0:00:08]} 48. Nxd6 {[%clk 0:00:33]}  Ra1 {[%clk 0:00:04]}
49. Nxb7 {[%clk 0:00:32]}  Rc1 {[%clk 0:00:03]} 50. Nd8+ {[%clk 0:00:28]}  Kd7 {[%clk 0:00:04]} 51. f7 {[%clk 0:00:21]}  Rf1+ {[%clk 0:00:04]}
52. Ke4 {[%clk 0:00:21]}  Kc7 {[%clk 0:00:01]} 53. Be7 {[%clk 0:00:21]}  Kd7 {[%clk 0:00:03]} 54. f8=Q {[%clk 0:00:20]}  Rxf8 {[%clk 0:00:04]}
55. Bxf8 {[%clk 0:00:21]}  Kc7 {[%clk 0:00:04]} 56. Nf7 {[%clk 0:00:21]}  Kb6 {[%clk 0:00:06]} 57. Kd4 {[%clk 0:00:22]}  a5 {[%clk 0:00:07]}
58. bxa5+ {[%clk 0:00:23]}  Kxa5 {[%clk 0:00:09]} 59. Kc5 {[%clk 0:00:24]} 1-0

[Event "2026 Biel Blitz Open"]
[Site "Biel, CH"]
[Date "2026.07.19"]
[Round "6"]
[White "Leuthold, Cyrill"]
[Black "Langner, Robin"]
[Result "0-1"]
[Board "30"]
[TimeControl "180+2"]
[WhiteFideId "1333011"]
[BlackFideId "34606190"]
[WhiteElo "1887"]
[BlackElo "2059"]
[WhiteClock "0:00:04"]
[BlackClock "0:00:10"]
[Variant "Standard"]
[EndDate "2026.07.19"]
[EndTime "13:28:46"]

1. d4 {[%clk 0:03:02]}  Nf6 {[%clk 0:03:02]} 2. Bg5 {[%clk 0:02:59]}  d5 {[%clk 0:03:01]} 3. e3 {[%clk 0:02:58]}  c5 {[%clk 0:02:58]}
4. Bxf6 {[%clk 0:00:00]}  gxf6 {[%clk 0:00:00]} 5. dxc5 {[%clk 0:00:00]}  Nc6 {[%clk 0:00:00]} 6. a3 {[%clk 0:00:00]}  a5 {[%clk 0:00:00]}
7. Bb5 {[%clk 0:02:24]}  e6 {[%clk 0:03:03]} 8. Nf3 {[%clk 0:02:15]}  Bxc5 {[%clk 0:02:53]} 9. O-O {[%clk 0:02:12]}  Bd7 {[%clk 0:02:53]}
10. c4 {[%clk 0:02:04]}  dxc4 {[%clk 0:02:37]} 11. Qc2 {[%clk 0:01:47]}  Qb6 {[%clk 0:02:20]} 12. Qxc4 {[%clk 0:01:28]}  Rg8 {[%clk 0:02:02]}
13. Nc3 {[%clk 0:01:25]}  Be7 {[%clk 0:02:00]} 14. Rad1 {[%clk 0:00:55]}  Qc5 {[%clk 0:01:50]} 15. Qh4 {[%clk 0:00:45]}  O-O-O {[%clk 0:01:34]}
16. Be2 {[%clk 0:00:27]}  Kb8 {[%clk 0:01:27]} 17. Ne4 {[%clk 0:00:21]}  Qf5 {[%clk 0:01:22]} 18. Nd6 {[%clk 0:00:14]}  Qg6 {[%clk 0:01:16]}
19. g3 {[%clk 0:00:10]}  f5 {[%clk 0:01:14]} 20. Qc4 {[%clk 0:00:06]}  h5 {[%clk 0:01:02]} 21. b4 {[%clk 0:00:03]}  h4 {[%clk 0:00:56]}
22. b5 {[%clk 0:00:03]}  hxg3 {[%clk 0:00:55]} 23. fxg3 {[%clk 0:00:04]}  Na7 {[%clk 0:00:18]} 24. Ne5 {[%clk 0:00:05]}  Qh6 {[%clk 0:00:17]}
25. b6 {[%clk 0:00:06]}  Qxe3+ {[%clk 0:00:16]} 26. Kh1 {[%clk 0:00:06]}  Nc6 {[%clk 0:00:10]} 27. Nxd7+ {[%clk 0:00:04]}  Rxd7 {[%clk 0:00:10]}
28. Nxf7 {[%clk 0:00:04]} 0-1

[Event "2026 Biel Blitz Open"]
[Site "Biel, CH"]
[Date "2026.07.19"]
[Round "6"]
[White "Baury, Noe"]
[Black "Xu, Chang(CQ)"]
[Result "0-1"]
[Board "32"]
[TimeControl "180+2"]
[WhiteFideId "651086867"]
[BlackFideId "8641757"]
[WhiteElo "1886"]
[BlackElo "2049"]
[WhiteClock "0:00:07"]
[BlackClock "0:00:27"]
[Variant "Standard"]
[EndDate "2026.07.19"]
[EndTime "13:36:18"]

1. e4 {[%clk 0:03:02]}  c5 {[%clk 0:03:02]} 2. d4 {[%clk 0:03:01]}  cxd4 {[%clk 0:03:02]} 3. Qxd4 {[%clk 0:03:02]}  Nc6 {[%clk 0:03:02]}
4. Qd3 {[%clk 0:03:03]}  Nf6 {[%clk 0:03:01]} 5. Nc3 {[%clk 0:03:05]}  g6 {[%clk 0:02:59]} 6. Nf3 {[%clk 0:03:05]}  Bg7 {[%clk 0:02:58]}
7. Be2 {[%clk 0:03:01]}  O-O {[%clk 0:02:57]} 8. Bg5 {[%clk 0:03:03]}  d6 {[%clk 0:02:48]} 9. O-O {[%clk 0:02:49]}  Bd7 {[%clk 0:02:36]}
10. Nd5 {[%clk 0:02:50]}  Nxd5 {[%clk 0:02:29]} 11. exd5 {[%clk 0:02:51]}  Ne5 {[%clk 0:01:54]} 12. Nxe5 {[%clk 0:02:51]}  dxe5 {[%clk 0:01:55]}
13. c4 {[%clk 0:02:32]}  h6 {[%clk 0:01:54]} 14. Bh4 {[%clk 0:02:31]}  f5 {[%clk 0:01:52]} 15. f4 {[%clk 0:01:54]}  exf4 {[%clk 0:01:51]}
16. Bf2 {[%clk 0:01:43]}  e5 {[%clk 0:01:37]} 17. dxe6 {[%clk 0:01:35]}  Bxe6 {[%clk 0:01:37]} 18. Qf3 {[%clk 0:01:35]}  Qc7 {[%clk 0:01:31]}
19. Rfe1 {[%clk 0:01:21]}  g5 {[%clk 0:01:30]} 20. Bd3 {[%clk 0:01:16]}  Rae8 {[%clk 0:01:22]} 21. Rad1 {[%clk 0:00:55]}  b6 {[%clk 0:01:19]}
22. c5 {[%clk 0:00:41]}  Kh8 {[%clk 0:01:07]} 23. Rc1 {[%clk 0:00:35]}  Qb8 {[%clk 0:01:00]} 24. c6 {[%clk 0:00:33]}  Qc7 {[%clk 0:01:01]}
25. b3 {[%clk 0:00:26]}  g4 {[%clk 0:01:02]} 26. Qe2 {[%clk 0:00:24]}  g3 {[%clk 0:00:55]} 27. hxg3 {[%clk 0:00:16]}  fxg3 {[%clk 0:00:56]}
28. Be3 {[%clk 0:00:16]}  f4 {[%clk 0:00:57]} 29. Bd2 {[%clk 0:00:14]}  f3 {[%clk 0:00:41]} 30. gxf3 {[%clk 0:00:12]}  Bd4+ {[%clk 0:00:37]}
31. Kh1 {[%clk 0:00:12]}  Qd8 {[%clk 0:00:30]} 32. Qe4 {[%clk 0:00:11]}  Bf5 {[%clk 0:00:28]} 33. c7 {[%clk 0:00:05]}  Bxe4 {[%clk 0:00:26]}
34. Bxe4 {[%clk 0:00:04]}  Qh4+ {[%clk 0:00:25]} 35. Kg2 {[%clk 0:00:06]}  Qh2+ {[%clk 0:00:26]} 36. Kf1 {[%clk 0:00:07]}  Qf2# {[%clk 0:00:27]} 0-1

[Event "2026 Biel Blitz Open"]
[Site "Biel, CH"]
[Date "2026.07.19"]
[Round "6"]
[White "Stefan, Romulus-Cristian"]
[Black "Lupei, Denis"]
[Result "1-0"]
[Board "33"]
[TimeControl "180+2"]
[WhiteFideId "1232835"]
[BlackFideId "34611231"]
[WhiteElo "2048"]
[BlackElo "1890"]
[WhiteTitle "CM"]
[WhiteClock "0:01:03"]
[BlackClock "0:00:11"]
[Variant "Standard"]
[EndDate "2026.07.19"]
[EndTime "13:37:27"]

1. d4 {[%clk 0:03:03]}  Nf6 {[%clk 0:03:03]} 2. Nf3 {[%clk 0:03:04]}  e6 {[%clk 0:03:04]} 3. Bg5 {[%clk 0:03:05]}  Be7 {[%clk 0:03:04]}
4. Nbd2 {[%clk 0:03:06]}  d5 {[%clk 0:03:05]} 5. e3 {[%clk 0:03:07]}  c5 {[%clk 0:03:01]} 6. c3 {[%clk 0:03:08]}  Nc6 {[%clk 0:03:02]}
7. Bd3 {[%clk 0:03:09]}  O-O {[%clk 0:02:56]} 8. O-O {[%clk 0:03:07]}  b6 {[%clk 0:02:50]} 9. Ne5 {[%clk 0:03:07]}  Bb7 {[%clk 0:02:46]}
10. Bxf6 {[%clk 0:03:07]}  Bxf6 {[%clk 0:02:43]} 11. f4 {[%clk 0:03:08]}  g6 {[%clk 0:02:32]} 12. Qg4 {[%clk 0:02:50]}  Bg7 {[%clk 0:02:27]}
13. Rf3 {[%clk 0:02:43]}  f5 {[%clk 0:01:49]} 14. Qh3 {[%clk 0:02:41]}  Nxe5 {[%clk 0:01:38]} 15. fxe5 {[%clk 0:02:39]}  g5 {[%clk 0:01:31]}
16. g4 {[%clk 0:02:38]}  c4 {[%clk 0:01:09]} 17. Bc2 {[%clk 0:02:39]}  h6 {[%clk 0:00:50]} 18. Raf1 {[%clk 0:02:37]}  fxg4 {[%clk 0:00:46]}
19. Qxg4 {[%clk 0:02:33]}  Qe7 {[%clk 0:00:32]} 20. Qh5 {[%clk 0:02:08]}  Rxf3 {[%clk 0:00:28]} 21. Rxf3 {[%clk 0:02:09]}  Rf8 {[%clk 0:00:28]}
22. Qg6 {[%clk 0:02:10]}  Rxf3 {[%clk 0:00:25]} 23. Nxf3 {[%clk 0:02:07]}  Qf7 {[%clk 0:00:24]} 24. Qh7+ {[%clk 0:02:07]}  Kf8 {[%clk 0:00:24]}
25. Kg2 {[%clk 0:02:02]}  Bc6 {[%clk 0:00:22]} 26. h3 {[%clk 0:01:58]}  Be8 {[%clk 0:00:19]} 27. Bb1 {[%clk 0:01:55]}  Qg8 {[%clk 0:00:16]}
28. Qc2 {[%clk 0:01:56]}  Qf7 {[%clk 0:00:14]} 29. Nh2 {[%clk 0:01:48]}  h5 {[%clk 0:00:13]} 30. Nf3 {[%clk 0:01:47]}  g4 {[%clk 0:00:14]}
31. Ng5 {[%clk 0:01:29]}  Qe7 {[%clk 0:00:14]} 32. h4 {[%clk 0:01:20]}  b5 {[%clk 0:00:09]} 33. Qf2+ {[%clk 0:01:14]}  Kg8 {[%clk 0:00:10]}
34. Bh7+ {[%clk 0:01:08]}  Kh8 {[%clk 0:00:11]} 35. Bc2 {[%clk 0:01:08]}  Kg8 {[%clk 0:00:11]} 36. Kg3 {[%clk 0:01:02]}  Bh6 {[%clk 0:00:11]}
37. Nh7 {[%clk 0:01:03]}  Bg7 {[%clk 0:00:10]} 38. Qf4 {[%clk 0:01:00]}  Kh8 {[%clk 0:00:09]} 39. Nf6 {[%clk 0:01:03]}  Bxf6 {[%clk 0:00:10]}
40. exf6 {[%clk 0:01:04]}  Qf7 {[%clk 0:00:11]} 41. Qg5 {[%clk 0:01:03]}  Qg6 {[%clk 0:00:11]} 42. Bxg6 {[%clk 0:01:03]} 1-0

[Event "2026 Biel Blitz Open"]
[Site "Biel, CH"]
[Date "2026.07.19"]
[Round "6"]
[White "Hajduk, Tomasz"]
[Black "Bajraktari, Perparim"]
[Result "1-0"]
[Board "34"]
[TimeControl "180+2"]
[WhiteFideId "21811415"]
[BlackFideId "1307711"]
[WhiteElo "1791"]
[BlackElo "2045"]
[WhiteClock "0:00:32"]
[BlackClock "0:00:35"]
[Variant "Standard"]
[EndDate "2026.07.19"]
[EndTime "13:38:12"]

1. e4 {[%clk 0:03:02]}  c5 {[%clk 0:03:03]} 2. Nf3 {[%clk 0:03:03]}  Nc6 {[%clk 0:03:03]} 3. d4 {[%clk 0:03:04]}  cxd4 {[%clk 0:03:04]}
4. Nxd4 {[%clk 0:03:05]}  e6 {[%clk 0:03:05]} 5. Nc3 {[%clk 0:03:05]}  d6 {[%clk 0:03:06]} 6. Be3 {[%clk 0:03:06]}  Bd7 {[%clk 0:03:08]}
7. Qd2 {[%clk 0:03:04]}  a6 {[%clk 0:03:09]} 8. O-O-O {[%clk 0:03:03]}  Rc8 {[%clk 0:03:10]} 9. f4 {[%clk 0:03:01]}  Be7 {[%clk 0:03:09]}
10. g4 {[%clk 0:03:01]}  Nf6 {[%clk 0:03:09]} 11. g5 {[%clk 0:03:02]}  Ng4 {[%clk 0:03:00]} 12. Nxc6 {[%clk 0:02:55]}  Bxc6 {[%clk 0:02:59]}
13. Bd4 {[%clk 0:02:55]}  e5 {[%clk 0:02:52]} 14. Bg1 {[%clk 0:02:30]}  exf4 {[%clk 0:02:52]} 15. Nd5 {[%clk 0:02:27]}  Bxd5 {[%clk 0:02:40]}
16. exd5 {[%clk 0:02:27]}  O-O {[%clk 0:02:35]} 17. h4 {[%clk 0:02:12]}  Ne5 {[%clk 0:02:21]} 18. Qxf4 {[%clk 0:02:15]}  f6 {[%clk 0:02:15]}
19. Bh3 {[%clk 0:02:05]}  fxg5 {[%clk 0:02:09]} 20. Be6+ {[%clk 0:02:05]}  Kh8 {[%clk 0:02:10]} 21. Qe4 {[%clk 0:01:58]}  Rc4 {[%clk 0:02:08]}
22. Qe2 {[%clk 0:01:53]}  gxh4 {[%clk 0:01:53]} 23. Kb1 {[%clk 0:01:52]}  Bf6 {[%clk 0:01:46]} 24. Rf1 {[%clk 0:01:40]}  Rb4 {[%clk 0:01:46]}
25. c3 {[%clk 0:01:38]}  Rb5 {[%clk 0:01:45]} 26. Bd4 {[%clk 0:01:33]}  a5 {[%clk 0:01:30]} 27. Qxb5 {[%clk 0:01:23]}  Qc7 {[%clk 0:01:06]}
28. Rxh4 {[%clk 0:01:15]}  Qe7 {[%clk 0:01:03]} 29. Rxh7+ {[%clk 0:01:05]}  Kxh7 {[%clk 0:01:03]} 30. Rh1+ {[%clk 0:01:05]}  Bh4 {[%clk 0:01:02]}
31. Qe2 {[%clk 0:00:56]}  Nf3 {[%clk 0:00:55]} 32. Bf5+ {[%clk 0:00:49]}  Kg8 {[%clk 0:00:47]} 33. Qxf3 {[%clk 0:00:43]}  Qg5 {[%clk 0:00:39]}
34. Be6+ {[%clk 0:00:38]}  Kh7 {[%clk 0:00:35]} 35. Qxf8 {[%clk 0:00:32]} 1-0

[Event "2026 Biel Blitz Open"]
[Site "Biel, CH"]
[Date "2026.07.19"]
[Round "6"]
[White "Nguyen Thi Mai Hung"]
[Black "Bujes, Aurelien"]
[Result "1-0"]
[Board "35"]
[TimeControl "180+2"]
[WhiteFideId "12401676"]
[BlackFideId "1347179"]
[WhiteElo "2039"]
[BlackElo "1741"]
[WhiteTitle "WGM"]
[WhiteClock "0:00:34"]
[BlackClock "0:00:12"]
[Variant "Standard"]
[EndDate "2026.07.19"]
[EndTime "13:29:05"]

1. d4 {[%clk 0:03:03]}  Nf6 {[%clk 0:03:03]} 2. Nf3 {[%clk 0:03:03]}  d6 {[%clk 0:03:03]} 3. g3 {[%clk 0:03:03]}  Bf5 {[%clk 0:03:01]}
4. Bg2 {[%clk 0:03:02]}  c6 {[%clk 0:02:59]} 5. O-O {[%clk 0:03:01]}  Nbd7 {[%clk 0:02:59]} 6. c4 {[%clk 0:02:58]}  g6 {[%clk 0:02:51]}
7. Nc3 {[%clk 0:02:58]}  Bg7 {[%clk 0:02:50]} 8. Nd2 {[%clk 0:02:57]}  Nb6 {[%clk 0:02:46]} 9. e4 {[%clk 0:02:49]}  Bd7 {[%clk 0:02:43]}
10. c5 {[%clk 0:02:39]}  Nc8 {[%clk 0:02:36]} 11. e5 {[%clk 0:02:21]}  Ng4 {[%clk 0:02:26]} 12. h3 {[%clk 0:02:00]}  dxe5 {[%clk 0:02:07]}
13. hxg4 {[%clk 0:02:00]}  exd4 {[%clk 0:02:07]} 14. Nce4 {[%clk 0:01:55]}  O-O {[%clk 0:02:00]} 15. Nb3 {[%clk 0:01:53]}  Be6 {[%clk 0:01:51]}
16. Qd3 {[%clk 0:01:27]}  Bxb3 {[%clk 0:01:49]} 17. Qxb3 {[%clk 0:01:19]}  Qd7 {[%clk 0:01:48]} 18. g5 {[%clk 0:01:15]}  b6 {[%clk 0:01:47]}
19. Rd1 {[%clk 0:01:14]}  e5 {[%clk 0:01:34]} 20. Bd2 {[%clk 0:01:04]}  bxc5 {[%clk 0:01:28]} 21. Nxc5 {[%clk 0:01:02]}  Qe7 {[%clk 0:01:29]}
22. Rac1 {[%clk 0:01:02]}  Nd6 {[%clk 0:01:25]} 23. Bxc6 {[%clk 0:00:57]}  Rab8 {[%clk 0:01:25]} 24. Qa3 {[%clk 0:00:58]}  Rfc8 {[%clk 0:01:13]}
25. Ne4 {[%clk 0:00:58]}  Bf8 {[%clk 0:00:54]} 26. Nxd6 {[%clk 0:00:48]}  Qxd6 {[%clk 0:00:53]} 27. Qxd6 {[%clk 0:00:48]}  Bxd6 {[%clk 0:00:54]}
28. b3 {[%clk 0:00:49]}  Rb6 {[%clk 0:00:53]} 29. Be4 {[%clk 0:00:46]}  Re8 {[%clk 0:00:51]} 30. Rc4 {[%clk 0:00:41]}  a6 {[%clk 0:00:46]}
31. Rdc1 {[%clk 0:00:41]}  Kg7 {[%clk 0:00:46]} 32. Rc6 {[%clk 0:00:40]}  Reb8 {[%clk 0:00:44]} 33. Rxb6 {[%clk 0:00:36]}  Rxb6 {[%clk 0:00:45]}
34. Rc6 {[%clk 0:00:37]}  Rxc6 {[%clk 0:00:46]} 35. Bxc6 {[%clk 0:00:38]}  f5 {[%clk 0:00:41]} 36. gxf6+ {[%clk 0:00:39]}  Kxf6 {[%clk 0:00:42]}
37. Bb7 {[%clk 0:00:39]}  Kf5 {[%clk 0:00:36]} 38. f3 {[%clk 0:00:38]}  h5 {[%clk 0:00:34]} 39. Kf2 {[%clk 0:00:38]}  g5 {[%clk 0:00:32]}
40. Bxa6 {[%clk 0:00:39]}  g4 {[%clk 0:00:32]} 41. Bc8+ {[%clk 0:00:39]}  Kf6 {[%clk 0:00:27]} 42. fxg4 {[%clk 0:00:39]}  hxg4 {[%clk 0:00:28]}
43. Bxg4 {[%clk 0:00:39]}  e4 {[%clk 0:00:28]} 44. Bf4 {[%clk 0:00:40]}  Bc5 {[%clk 0:00:27]} 45. Ke2 {[%clk 0:00:38]}  Bb4 {[%clk 0:00:26]}
46. Bd7 {[%clk 0:00:34]}  Ke7 {[%clk 0:00:20]} 47. Bf5 {[%clk 0:00:35]}  e3 {[%clk 0:00:13]} 48. Kd3 {[%clk 0:00:36]}  Bc3 {[%clk 0:00:12]}
49. Bxe3 {[%clk 0:00:34]}  dxe3 {[%clk 0:00:12]} 50. Kxc3 {[%clk 0:00:34]} 1-0

[Event "2026 Biel Blitz Open"]
[Site "Biel, CH"]
[Date "2026.07.19"]
[Round "6"]
[White "Vedant Nayudu"]
[Black "El-Mais, Ibaa"]
[Result "0-1"]
[Board "36"]
[TimeControl "180+2"]
[WhiteFideId "33369780"]
[BlackFideId "1312715"]
[WhiteElo "1732"]
[BlackElo "2012"]
[WhiteClock "0:00:03"]
[BlackClock "0:00:11"]
[Variant "Standard"]
[EndDate "2026.07.19"]
[EndTime "13:36:29"]

1. e4 {[%clk 0:02:47]}  c6 {[%clk 0:03:02]} 2. d4 {[%clk 0:02:47]}  d5 {[%clk 0:03:03]} 3. exd5 {[%clk 0:02:48]}  cxd5 {[%clk 0:03:05]}
4. Bd3 {[%clk 0:02:49]}  Nc6 {[%clk 0:03:05]} 5. c3 {[%clk 0:02:50]}  Qc7 {[%clk 0:03:06]} 6. h3 {[%clk 0:02:51]}  Nf6 {[%clk 0:03:05]}
7. Nf3 {[%clk 0:02:52]}  g6 {[%clk 0:03:06]} 8. O-O {[%clk 0:02:43]}  Bf5 {[%clk 0:03:07]} 9. Re1 {[%clk 0:02:03]}  e6 {[%clk 0:02:51]}
10. Ne5 {[%clk 0:02:04]}  Bd6 {[%clk 0:02:43]} 11. Bb5 {[%clk 0:01:49]}  h5 {[%clk 0:02:16]} 12. Bg5 {[%clk 0:01:34]}  Bxe5 {[%clk 0:02:05]}
13. dxe5 {[%clk 0:01:27]}  Nd7 {[%clk 0:02:06]} 14. Nd2 {[%clk 0:01:11]}  a6 {[%clk 0:01:42]} 15. Bxc6 {[%clk 0:00:36]}  bxc6 {[%clk 0:01:43]}
16. Nf1 {[%clk 0:00:21]}  h4 {[%clk 0:01:21]} 17. Qd4 {[%clk 0:00:16]}  Qb6 {[%clk 0:01:03]} 18. Qf4 {[%clk 0:00:11]}  Qxb2 {[%clk 0:00:57]}
19. Bxh4 {[%clk 0:00:06]}  Nc5 {[%clk 0:00:48]} 20. Bf6 {[%clk 0:00:04]}  Nd3 {[%clk 0:00:36]} 21. Qd2 {[%clk 0:00:04]}  Qxd2 {[%clk 0:00:29]}
22. Nxd2 {[%clk 0:00:02]}  O-O {[%clk 0:00:28]} 23. Re3 {[%clk 0:00:06]}  Nc5 {[%clk 0:00:06]} 24. g4 {[%clk 0:00:08]}  Bc2 {[%clk 0:00:07]}
25. Be7 {[%clk 0:00:09]}  Ne4 {[%clk 0:00:04]} 26. Nxe4 {[%clk 0:00:07]}  Bxe4 {[%clk 0:00:05]} 27. Bxf8 {[%clk 0:00:07]}  Kxf8 {[%clk 0:00:07]}
28. f3 {[%clk 0:00:08]}  Bc2 {[%clk 0:00:07]} 29. Re2 {[%clk 0:00:09]}  Bd3 {[%clk 0:00:07]} 30. Rd2 {[%clk 0:00:11]}  Bc4 {[%clk 0:00:09]}
31. Rb1 {[%clk 0:00:12]}  Kg7 {[%clk 0:00:07]} 32. Kf2 {[%clk 0:00:13]}  g5 {[%clk 0:00:08]} 33. Kg3 {[%clk 0:00:08]}  f6 {[%clk 0:00:06]}
34. exf6+ {[%clk 0:00:07]}  Kxf6 {[%clk 0:00:07]} 35. a4 {[%clk 0:00:04]}  Rf8 {[%clk 0:00:05]} 36. a5 {[%clk 0:00:05]}  Ke5 {[%clk 0:00:05]}
37. Re1+ {[%clk 0:00:06]}  Kd6 {[%clk 0:00:06]} 38. Rd4 {[%clk 0:00:07]}  e5 {[%clk 0:00:06]} 39. Rd2 {[%clk 0:00:07]}  Rb8 {[%clk 0:00:05]}
40. Rc2 {[%clk 0:00:04]}  Rb5 {[%clk 0:00:04]} 41. Ra1 {[%clk 0:00:05]}  Rb3 {[%clk 0:00:04]} 42. h4 {[%clk 0:00:03]}  gxh4+ {[%clk 0:00:04]}
43. Kxh4 {[%clk 0:00:08]}  Bd3 {[%clk 0:00:05]} 44. Rcc1 {[%clk 0:00:07]}  Kc5 {[%clk 0:00:04]} 45. g5 {[%clk 0:00:08]}  Kc4 {[%clk 0:00:05]}
46. Kh5 {[%clk 0:00:08]}  Rb2 {[%clk 0:00:05]} 47. Rh1 {[%clk 0:00:05]}  Rb8 {[%clk 0:00:05]} 48. g6 {[%clk 0:00:06]}  Rh8+ {[%clk 0:00:04]}
49. Kg5 {[%clk 0:00:07]}  Rg8 {[%clk 0:00:05]} 50. Rh6 {[%clk 0:00:08]}  Kxc3 {[%clk 0:00:07]} 51. Kf6 {[%clk 0:00:06]}  e4 {[%clk 0:00:04]}
52. Kf7 {[%clk 0:00:06]}  Rb8 {[%clk 0:00:05]} 53. fxe4 {[%clk 0:00:06]}  Bxe4 {[%clk 0:00:06]} 54. g7 {[%clk 0:00:07]}  d4 {[%clk 0:00:08]}
55. g8=Q {[%clk 0:00:05]}  Bd5+ {[%clk 0:00:08]} 56. Ke7 {[%clk 0:00:03]}  Rxg8 {[%clk 0:00:08]} 57. Rc1+ {[%clk 0:00:05]}  Kd2 {[%clk 0:00:09]}
58. Rhxc6 {[%clk 0:00:03]}  Bxc6 {[%clk 0:00:09]} 59. Rxc6 {[%clk 0:00:04]}  d3 {[%clk 0:00:10]} 60. Rxa6 {[%clk 0:00:04]}  Ke2 {[%clk 0:00:09]}
61. Re6+ {[%clk 0:00:05]}  Kd1 {[%clk 0:00:11]} 62. Rd6 {[%clk 0:00:05]}  d2 {[%clk 0:00:12]} 63. Kd7 {[%clk 0:00:05]}  Ra8 {[%clk 0:00:12]}
64. a6 {[%clk 0:00:05]}  Kc1 {[%clk 0:00:12]} 65. Kc7 {[%clk 0:00:05]}  Rxa6 {[%clk 0:00:12]} 66. Rd4 {[%clk 0:00:03]}  d1=Q {[%clk 0:00:11]} 0-1